bitfinex-derivatives/quotes_BTCF0:USTF0_20250402
["timestamp","ask_amount","ask_price","bid_price","bid_amount"]
[1743632258811,0.12034991,83514.0,83513.0,0.00076]
[1743632259115,0.1197614,83506.0,83505.0,0.00017964]
[1743632259311,0.12036141,83506.0,83505.0,0.00017964]
[1743632259615,0.1197714,83499.0,83496.0,0.1197753]
[1743632259814,0.1204114,83499.0,83494.0,0.0598892]
[1743632260013,0.1204114,83499.0,83498.0,0.12025195]
[1743632260212,0.4812114,83499.0,83498.0,0.00107905]
[1743632260520,0.4812114,83499.0,83498.0,0.00047905]
[1743632260720,0.00064,83499.0,83498.0,0.12025195]
[1743632261018,0.00064,83499.0,83498.0,0.12089195]
[1743632261319,0.1204114,83499.0,83498.0,0.12089195]
[1743632261816,0.1204114,83499.0,83498.0,0.00111905]
[1743632262323,0.1204114,83499.0,83498.0,0.12089195]
[1743632262815,0.51144,83499.0,83466.0,0.00047923]
[1743632263012,0.3608,83469.0,83466.0,0.00107923]
[1743632263211,0.0599089,83467.0,83450.0,0.70090913]
[1743632263410,0.0599178,83455.0,83450.0,0.70150913]
[1743632263610,0.1198403,83451.0,83450.0,0.70150913]
[1743632263817,0.00084,83451.0,83450.0,0.70150913]
[1743632264021,0.0206173,83467.0,83450.0,0.76142993]
[1743632264213,0.00017964,83459.0,83458.0,0.1198303]
[1743632264521,0.12000844,83459.0,83458.0,0.0006]
[1743632264709,0.0599177,83455.0,83452.0,0.2396751]
[1743632264912,0.1221,83454.0,83452.0,0.2403551]
[1743632265109,0.00275377,83454.0,83453.0,0.4806375]
[1743632265311,0.00215376,83454.0,83453.0,0.7321775]
[1743632265515,0.3608,83489.0,83453.0,0.76234]
[1743632265819,0.1197978,83482.0,83481.0,0.1197947]
[1743632266119,0.1221,83493.0,83481.0,1.0522]
[1743632266311,0.0004,83507.0,83503.0,0.0598828]
[1743632266508,0.0004,83507.0,83481.0,0.3306]
[1743632266509,0.0004,83491.0,83481.0,0.33]
[1743632266708,0.1197908,83487.0,83486.0,0.1197881]
[1743632266912,0.1204708,83487.0,83486.0,0.0006]
[1743632267106,0.1204708,83487.0,83482.0,0.01629205]
[1743632267107,0.1197944,83483.0,83482.0,0.01629205]
[1743632267318,0.36156,83483.0,83439.0,0.5992836]
[1743632267513,0.1198182,83469.0,83468.0,0.0599068]
[1743632267712,0.1205782,83469.0,83468.0,0.0599068]
[1743632267919,0.1205782,83469.0,83468.0,0.2396237]
[1743632268216,0.0599165,83457.0,83444.0,0.420725]
[1743632268405,0.1198375,83454.0,83453.0,0.1198375]
[1743632268611,0.00076,83454.0,83453.0,0.1198375]
[1743632268905,0.00076,83454.0,83453.0,0.1204375]
[1743632269105,0.2475,83465.0,83459.0,0.1198246]
[1743632269319,0.2475,83465.0,83454.0,0.2476346]
[1743632269320,0.1198346,83455.0,83454.0,0.2476346]
[1743632269514,0.1198403,83451.0,83450.0,0.70090913]
[1743632269706,0.1206003,83451.0,83450.0,0.70158913]
[1743632269912,0.48786189,83451.0,83450.0,0.70158913]
[1743632270414,0.63786189,83451.0,83450.0,0.00068]
[1743632270612,0.1198633,83435.0,83432.0,0.1198663]
[1743632270808,0.12090331,83435.0,83423.0,0.1299]
[1743632271008,0.15752612,83435.0,83423.0,0.1299]
[1743632271221,0.15752612,83435.0,83434.0,0.12034422]
[1743632271409,0.03766282,83435.0,83434.0,0.12034422]
[1743632271611,0.03766282,83435.0,83434.0,0.12094422]
[1743632271814,0.03662281,83435.0,83434.0,0.12094422]
[1743632272019,0.15648611,83435.0,83434.0,0.00107942]
[1743632272220,0.12082331,83435.0,83434.0,0.00047942]
[1743632272520,0.03758282,83435.0,83434.0,0.12034422]
[1743632272716,0.03758282,83435.0,83434.0,0.12094422]
[1743632272920,0.15648611,83435.0,83434.0,0.25084422]
[1743632273111,0.15744612,83435.0,83434.0,0.25084422]
[1743632273416,0.15744612,83435.0,83434.0,0.00107942]
[1743632273619,0.15744612,83435.0,83434.0,0.12034422]
[1743632273815,0.15744612,83435.0,83434.0,0.00047942]
[1743632274022,0.40844612,83435.0,83434.0,0.00047942]
[1743632274218,0.0599396,83424.0,83420.0,0.0599416]
[1743632274422,0.1198849,83421.0,83420.0,0.0605416]
[1743632274622,0.1198834,83422.0,83421.0,0.1198831]
[1743632274809,0.1198834,83422.0,83421.0,0.1205231]
[1743632275017,0.28285075,83422.0,83421.0,0.2404062]
[1743632275219,0.03546735,83422.0,83421.0,0.2404062]
[1743632275523,0.03446735,83422.0,83421.0,0.2404062]
[1743632275923,0.00096001,83422.0,83421.0,0.2404062]
[1743632276125,0.00017976,83429.0,83428.0,0.1198734]
[1743632276319,0.00113977,83429.0,83428.0,0.1204734]
[1743632276621,0.00113977,83429.0,83428.0,0.2465734]
[1743632276823,0.02819241,83429.0,83428.0,0.5765734]
[1743632277019,0.14806431,83429.0,83428.0,0.4504734]
[1743632277228,0.14806431,83429.0,83428.0,0.3306]
[1743632277428,0.14910432,83429.0,83428.0,0.4504734]
[1743632278422,0.02923242,83429.0,83428.0,1.0683734]
[1743632278621,0.02819241,83429.0,83428.0,0.7075734]
[1743632278822,0.02819241,83429.0,83428.0,1.0683734]
[1743632279724,0.3608,83463.0,83428.0,1.0985]
[1743632279928,0.12118991,83459.0,83458.0,0.1198303]
[1743632280131,0.12118991,83459.0,83458.0,0.1204303]
[1743632280329,0.12118991,83459.0,83458.0,0.0006]
[1743632280628,0.12118991,83459.0,83444.0,0.0599247]
[1743632280629,0.56896001,83459.0,83425.0,0.3608]
[1743632280833,0.56896001,83459.0,83439.0,0.0599275]
[1743632280834,0.1198623,83440.0,83439.0,0.0599275]
[1743632281029,0.4818223,83440.0,83439.0,0.0605275]
[1743632281230,0.48612087,83440.0,83439.0,0.0605275]
[1743632281737,0.48612087,83440.0,83439.0,0.1204576]
[1743632281933,0.48612087,83440.0,83439.0,0.0006]
[1743632282126,0.1198619,83436.0,83435.0,0.00017976]
[1743632282328,0.12110191,83436.0,83435.0,0.00017976]
[1743632282526,0.12972035,83436.0,83435.0,0.00017976]
[1743632282829,0.12972035,83436.0,83435.0,0.00081976]
[1743632283027,0.12972035,83436.0,83435.0,0.00017976]
[1743632284234,0.12972035,83436.0,83435.0,0.00085976]
[1743632284437,0.12972035,83436.0,83435.0,0.00017976]
[1743632284634,0.12972035,83436.0,83435.0,0.12004306]
[1743632284836,0.1198863,83419.0,83418.0,0.00047951]
[1743632285046,0.4818463,83419.0,83418.0,0.0006]
[1743632285245,0.1199064,83405.0,83401.0,0.1228]
[1743632285436,0.4807093,83403.0,83402.0,0.0017196]
[1743632285637,0.1199122,83401.0,83400.0,0.97343165]
[1743632285838,0.1199323,83387.0,83386.0,0.00047969]
[1743632286145,0.1199395,83384.0,83383.0,0.1199366]
[1743632286343,0.0016,83384.0,83383.0,0.1199366]
[1743632286547,0.01022836,83384.0,83383.0,0.4807366]
[1743632286844,0.01022836,83384.0,83383.0,0.1199366]
[1743632287148,0.0599709,83381.0,83378.0,0.1199453]
[1743632287338,0.00152,83381.0,83380.0,0.3608]
[1743632287543,0.02080391,83387.0,83384.0,0.0599677]
[1743632287743,0.02080391,83387.0,83380.0,0.3608]
[1743632287744,0.00152,83387.0,83385.0,0.2548]
[1743632287938,0.00152,83387.0,83386.0,0.1199338]
[1743632288135,0.3608,83394.0,83391.0,0.1199266]
[1743632288445,0.0017399,83392.0,83391.0,0.1199266]
[1743632288635,0.0017399,83392.0,83388.0,0.0599654]
[1743632288636,0.1199271,83391.0,83388.0,0.1199308]
[1743632288837,0.00152,83391.0,83390.0,0.124]
[1743632289137,0.0599545,83404.0,83390.0,0.124]
[1743632289138,0.3608,83438.0,83390.0,0.124]
[1743632289343,0.1274,83447.0,83426.0,0.3608]
[1743632289542,0.17335678,83470.0,83458.0,0.1198303]
[1743632289742,0.0004,83475.0,83473.0,0.119808]
[1743632289945,0.3612,83491.0,83490.0,0.1197844]
[1743632289946,0.0004,83491.0,83490.0,0.1197844]
[1743632290137,0.1,83500.0,83499.0,0.1193714]
[1743632290449,0.3608,83541.0,83522.0,0.1197385]
[1743632290649,0.3608,83541.0,83499.0,0.0006]
[1743632290650,0.3608,83541.0,83521.0,0.3608]
[1743632290836,0.3608,83541.0,83522.0,0.13064]
[1743632290837,0.119737,83523.0,83522.0,0.13064]
[1743632291041,0.3608,83523.0,83481.0,0.3608]
[1743632291243,0.1197944,83483.0,83482.0,0.13]
[1743632291750,0.0598949,83487.0,83474.0,0.00017966]
[1743632292055,0.3608,83520.0,83486.0,0.3608]
[1743632292252,0.0598726,83518.0,83493.0,0.3608]
[1743632292451,0.0598722,83518.0,83494.0,0.122]
[1743632292640,0.3608,83520.0,83511.0,0.3608]
[1743632292842,0.3608,83520.0,83512.0,0.1323]
[1743632292843,0.1197514,83513.0,83512.0,0.1323]
[1743632293044,0.3608,83541.0,83512.0,0.1323]
[1743632293354,0.3608,83569.0,83560.0,0.119684]
[1743632293555,0.3608,83562.0,83538.0,0.3608]
[1743632293751,0.0598527,83545.0,83542.0,0.1197076]
[1743632293945,0.1288266,83544.0,83543.0,0.2520055]
[1743632294146,0.1288266,83544.0,83543.0,0.1323]
[1743632294450,0.1288266,83544.0,83494.0,0.4097]
[1743632294451,0.1197542,83511.0,83510.0,0.3608]
[1743632294640,0.1197686,83501.0,83500.0,0.1323]
[1743632294956,0.11977,83500.0,83499.0,0.3608]
[1743632295264,0.35888076,83500.0,83452.0,0.3608]
[1743632295549,0.1198174,83467.0,83466.0,0.12029803]
[1743632295742,0.14399749,83467.0,83466.0,0.12029803]
[1743632295943,0.1504536,83467.0,83466.0,0.00047923]
[1743632296254,0.1198288,83459.0,83458.0,0.00017968]
[1743632296552,0.02692194,83459.0,83458.0,0.12000998]
[1743632296752,0.02616194,83459.0,83458.0,0.12060998]
[1743632296942,0.02616194,83459.0,83458.0,0.24980998]
[1743632297448,0.14599074,83459.0,83458.0,0.00077968]
[1743632297652,0.12755017,83459.0,83458.0,0.00017968]
[1743632298040,0.00772137,83459.0,83458.0,0.12068998]
[1743632298245,0.00017968,83467.0,83466.0,0.1198188]
[1743632298458,0.00093968,83467.0,83466.0,0.4812188]
[1743632298751,0.1275,83478.0,83477.0,0.119803]
[1743632298951,0.0008,83478.0,83477.0,0.120443]
[1743632299254,0.1198016,83478.0,83477.0,0.00064]
[1743632299450,0.00076,83478.0,83460.0,0.33]
[1743632299650,0.00076,83478.0,83466.0,0.0006]
[1743632299651,0.1198174,83467.0,83466.0,0.0006]
[1743632299846,0.1198259,83462.0,83459.0,0.1324]
[1743632300153,0.00076,83462.0,83461.0,0.119826]
[1743632300342,0.1198232,83463.0,83461.0,0.119826]
[1743632300343,0.3608,83473.0,83464.0,0.1198216]
[1743632300543,0.01161907,83462.0,83459.0,0.1324]
[1743632300744,0.01161907,83462.0,83459.0,0.0006]
[1743632300952,0.01161907,83462.0,83461.0,0.119826]
[1743632301144,0.3608,83463.0,83462.0,0.0599122]
[1743632301457,0.1198125,83471.0,83470.0,0.1198131]
[1743632301653,0.07229556,83471.0,83470.0,0.0006]
[1743632301855,0.01238966,83471.0,83470.0,0.1198131]
[1743632302048,0.01162966,83471.0,83470.0,0.2488131]
[1743632302248,0.1232,83482.0,83476.0,0.1198044]
[1743632302559,0.1197993,83480.0,83479.0,0.1796969]
[1743632302858,0.00072,83480.0,83479.0,0.1803369]
[1743632303253,0.1205187,83480.0,83479.0,0.00064]
[1743632303559,0.119826,83461.0,83451.0,0.3608]
[1743632303761,0.120546,83461.0,83460.0,0.36144]
[1743632304056,0.00072,83461.0,83460.0,0.36144]
[1743632304260,0.119826,83461.0,83460.0,0.00064]
[1743632304556,0.00821578,83461.0,83460.0,0.1198274]
[1743632304860,0.02032426,83461.0,83460.0,0.1204274]
[1743632305064,0.3608,83481.0,83468.0,0.1198159]
[1743632305362,0.3608,83481.0,83468.0,0.8112959]
[1743632305553,0.01799183,83470.0,83468.0,0.8112959]
[1743632305749,0.01817151,83469.0,83468.0,0.8112959]
[1743632306056,0.00017968,83469.0,83468.0,0.8112959]
[1743632306855,0.3608,83488.0,83468.0,0.69148]
[1743632307050,0.3608,83481.0,83468.0,0.69148]
[1743632307252,0.1198145,83469.0,83468.0,0.33068]
[1743632307459,0.4812945,83469.0,83468.0,0.00068]
[1743632307661,0.0599121,83463.0,83460.0,0.1198274]
[1743632307956,0.119826,83461.0,83460.0,0.1205874]
[1743632308152,0.1266,83462.0,83461.0,0.119826]
[1743632308352,0.01700476,83462.0,83461.0,0.611746]
[1743632308556,0.00017968,83470.0,83469.0,0.1198145]
[1743632308752,0.00089968,83470.0,83469.0,0.4813345]
[1743632308959,0.00017968,83470.0,83469.0,0.4813345]
[1743632309156,0.11999278,83470.0,83469.0,0.1205345]
[1743632309363,0.00085968,83470.0,83469.0,0.1205345]
[1743632309549,0.00085968,83470.0,83469.0,0.4813345]
[1743632309750,0.01398345,83488.0,83469.0,0.4813345]
[1743632309751,0.1266,83487.0,83486.0,0.1197901]
[1743632310053,0.12728,83487.0,83486.0,0.4812701]
[1743632310257,0.02079831,83502.0,83490.0,0.1197844]
[1743632310457,0.17172,83507.0,83490.0,0.1205044]
[1743632310661,0.0598808,83506.0,83490.0,1.1721044]
[1743632310856,0.13835957,83503.0,83490.0,1.1721044]
[1743632311055,0.00017968,83499.0,83490.0,1.1721044]
[1743632312352,0.0598894,83494.0,83490.0,0.33072]
[1743632312547,0.1197944,83483.0,83482.0,0.00017968]
[1743632312759,0.1205144,83483.0,83482.0,0.00077968]
[1743632313455,0.00818145,83483.0,83482.0,0.12057548]
[1743632313857,0.00746145,83483.0,83482.0,0.12057548]
[1743632314060,0.1206,83498.0,83490.0,0.1197844]
[1743632314253,0.00112,83491.0,83490.0,0.1203844]
[1743632314451,0.0004,83491.0,83490.0,0.1203844]
[1743632314666,0.00112,83491.0,83490.0,0.1203844]
[1743632315248,0.0004,83491.0,83490.0,0.1203844]
[1743632315454,0.0004,83491.0,83490.0,0.1197725]
[1743632317161,0.1201829,83491.0,83490.0,0.0006]
[1743632317360,0.1197944,83483.0,83471.0,0.1233]
[1743632317564,0.48147441,83483.0,83481.0,0.1197969]
[1743632317767,0.48147441,83483.0,83482.0,0.00077968]
[1743632317956,0.36168001,83483.0,83482.0,0.00077968]
[1743632318158,0.36860881,83483.0,83482.0,0.11997548]
[1743632318358,0.00780881,83483.0,83482.0,0.12065548]
[1743632318566,0.00780881,83483.0,83482.0,0.24395548]
[1743632318567,0.02198177,83483.0,83482.0,0.24395548]
[1743632319060,0.03406551,83483.0,83482.0,0.24395548]
[1743632319251,0.03406551,83483.0,83482.0,0.57395548]
[1743632319656,0.0004,83491.0,83490.0,0.1197844]
[1743632319962,0.0004,83491.0,83490.0,0.09341225]
[1743632320359,0.01209443,83491.0,83490.0,0.09341225]
[1743632320556,0.01205444,83491.0,83490.0,0.09341225]
[1743632320862,0.13183734,83491.0,83490.0,0.09341225]
[1743632321367,0.1197829,83491.0,83490.0,0.21319375]
[1743632321664,0.1204629,83491.0,83490.0,0.21319375]
[1743632321867,0.01067316,83491.0,83490.0,0.21319375]
[1743632322267,0.14217316,83491.0,83490.0,0.21319375]
[1743632322563,0.26195606,83491.0,83490.0,0.21319375]
[1743632322762,0.38415606,83491.0,83490.0,0.09341225]
[1743632323369,0.28415606,83491.0,83490.0,0.09341225]
[1743632323554,0.28415606,83491.0,83482.0,0.00017968]
[1743632323555,0.28475607,83491.0,83482.0,0.00017968]
[1743632323759,0.28475607,83491.0,83464.0,0.3608]
[1743632323760,0.1198088,83473.0,83466.0,0.00047923]
[1743632323964,0.1198174,83467.0,83466.0,0.00047923]
[1743632324165,0.00096001,83467.0,83466.0,0.1198188]
[1743632324474,0.1222,83472.0,83466.0,0.1198188]
[1743632324475,0.2420102,83472.0,83471.0,0.1198116]
[1743632324667,0.60385021,83472.0,83471.0,0.08293681]
[1743632324871,0.60385021,83472.0,83471.0,0.05595451]
[1743632325070,0.48404001,83472.0,83471.0,0.0006]
[1743632325264,0.00104001,83472.0,83471.0,0.1204116]
[1743632325575,0.1278,83479.0,83478.0,0.1198016]
[1743632325762,0.60936011,83479.0,83478.0,0.1204016]
[1743632325970,0.60936011,83479.0,83450.0,0.00047933]
[1743632325971,0.1797316,83466.0,83464.0,0.0599106]
[1743632326286,0.1797587,83456.0,83450.0,0.06039973]
[1743632326465,0.1278,83455.0,83454.0,0.119836]
[1743632326665,0.26,83455.0,83454.0,0.119836]
[1743632326871,0.1338,83455.0,83454.0,0.119836]
[1743632327067,0.3608,83476.0,83475.0,0.1198059]
[1743632327268,0.00152,83476.0,83475.0,0.5405082]
[1743632327570,0.1322,83478.0,83477.0,0.119803]
[1743632327764,0.1322,83478.0,83477.0,0.449803]
[1743632328764,0.00017968,83484.0,83483.0,0.1197944]
[1743632328967,0.00177968,83484.0,83483.0,0.1197944]
[1743632329168,0.1198159,83468.0,83455.0,0.0599171]
[1743632329371,0.1213359,83468.0,83456.0,0.1275]
[1743632329675,0.1213359,83468.0,83445.0,0.3608]
[1743632329872,0.1797525,83457.0,83456.0,0.0599163]
[1743632330079,0.3608,83458.0,83457.0,0.1198317]
[1743632330278,0.1213503,83458.0,83457.0,0.1198317]
[1743632330465,0.2535503,83458.0,83457.0,0.1198317]
[1743632331367,0.2535503,83458.0,83448.0,0.119844]
[1743632331368,0.1198403,83451.0,83448.0,0.119844]
[1743632331568,0.1213603,83451.0,83450.0,0.12032113]
[1743632332878,0.00152,83451.0,83450.0,0.12032113]
[1743632333681,0.2520308,83458.0,83457.0,0.1198317]
[1743632333865,0.25359081,83458.0,83457.0,0.1198317]
[1743632334066,0.13376001,83458.0,83457.0,0.1198317]
[1743632334568,0.30663855,83458.0,83457.0,0.1198317]
[1743632334879,0.30815855,83458.0,83457.0,0.1198317]
[1743632335269,0.30815855,83458.0,83457.0,0.2497317]
[1743632335465,0.30815855,83458.0,83457.0,0.5597317]
[1743632335676,0.17595855,83458.0,83457.0,0.5597317]
[1743632335975,0.17595855,83458.0,83457.0,0.9205317]
[1743632336176,0.1197981,83481.0,83480.0,0.0598987]
[1743632336373,0.12083811,83481.0,83480.0,0.0598987]
[1743632336574,0.48163811,83481.0,83480.0,0.0598987]
[1743632336772,0.73443811,83481.0,83480.0,0.0598987]
[1743632337279,0.76464001,83481.0,83457.0,0.31]
[1743632337472,0.6004597,83461.0,83460.0,0.1198216]
[1743632337673,0.3608,83461.0,83450.0,0.36127933]
[1743632337978,0.4386441,83460.0,83459.0,0.1198288]
[1743632338173,0.43968411,83460.0,83459.0,0.1198288]
[1743632338376,0.45031699,83460.0,83459.0,0.1198288]
[1743632338677,0.27948883,83460.0,83459.0,0.1198288]
[1743632338880,0.40644368,83460.0,83459.0,0.1198288]
[1743632339379,0.28661628,83460.0,83459.0,0.1198288]
[1743632339673,0.28661628,83460.0,83459.0,0.4806288]
[1743632339871,0.0170834,83460.0,83459.0,0.4806288]
[1743632340064,0.01604339,83460.0,83459.0,0.4813088]
[1743632340575,0.01604339,83460.0,83459.0,0.7913088]
[1743632341774,0.01604339,83460.0,83459.0,0.4305088]
[1743632342081,0.14651408,83460.0,83459.0,0.1205088]
[1743632342271,0.14763409,83460.0,83459.0,0.1205088]
[1743632342472,0.1369908,83460.0,83459.0,0.1205088]
[1743632342672,0.12807486,83460.0,83459.0,0.1205088]
[1743632342874,0.25397486,83460.0,83459.0,0.1205088]
[1743632343668,0.00112001,83460.0,83459.0,0.1205088]
[1743632343867,0.129,83461.0,83460.0,0.1198274]
[1743632344179,0.13004001,83461.0,83460.0,0.1205074]
[1743632344369,0.1197863,83489.0,83472.0,0.1198102]
[1743632344677,0.14004104,83473.0,83472.0,0.1205302]
[1743632344884,0.14004104,83473.0,83472.0,0.4813302]
[1743632345177,0.13932104,83473.0,83472.0,0.4813302]
[1743632345483,0.1198088,83473.0,83472.0,0.120529]
[1743632345679,0.1198088,83473.0,83450.0,0.36127933]
[1743632345680,0.1198346,83456.0,83455.0,0.1198333]
[1743632345886,0.1797352,83465.0,83463.0,0.1198217]
[1743632346181,0.2528217,83464.0,83463.0,0.00064]
[1743632346379,0.25378171,83464.0,83463.0,0.00064]
[1743632346573,0.1797458,83462.0,83461.0,0.119825]
[1743632346775,0.18070581,83462.0,83461.0,0.119825]
[1743632347388,0.54150581,83462.0,83461.0,0.119825]
[1743632348082,0.1198274,83460.0,83459.0,0.0599141]
[1743632348283,0.12078741,83460.0,83459.0,0.0599141]
[1743632349179,0.00096001,83460.0,83459.0,0.0599141]
[1743632349383,0.00096001,83460.0,83459.0,0.0605541]
[1743632350075,1e-08,83460.0,83459.0,0.4213541]
[1743632350272,8e-08,83472.0,83471.0,0.1198116]
[1743632350475,0.02590254,83493.0,83471.0,0.5114]
[1743632350673,1e-07,83491.0,83490.0,0.4805844]
[1743632351084,1e-07,83491.0,83490.0,0.1197844]
[1743632351273,1e-07,83491.0,83490.0,0.3689844]
[1743632351679,0.15232,83514.0,83506.0,0.1197614]
[1743632351878,1e-07,83507.0,83506.0,0.4812414]
[1743632352085,0.15087819,83518.0,83517.0,0.1197456]
[1743632352272,0.3612,83539.0,83522.0,0.1197385]
[1743632352476,0.0004,83539.0,83525.0,0.1197342]
[1743632352679,0.03177378,83547.0,83545.0,0.1197055]
[1743632352680,0.006132,83547.0,83545.0,0.1197055]
[1743632352884,0.0004,83555.0,83554.0,0.1196926]
[1743632353076,0.0004,83555.0,83554.0,0.4816926]
[1743632353282,0.3794943,83562.0,83561.0,0.1196826]
[1743632353486,0.1313,83573.0,83565.0,0.1196768]
[1743632353676,0.1313,83573.0,83565.0,0.1208768]
[1743632353985,0.1313,83573.0,83570.0,0.1196697]
[1743632354190,0.00160001,83571.0,83570.0,0.1209497]
[1743632354385,0.0004,83571.0,83570.0,0.1209497]
[1743632355279,0.0004,83571.0,83570.0,0.4309497]
[1743632356300,0.00011642,83574.0,83573.0,0.1196654]
[1743632356476,0.1313,83581.0,83580.0,0.1196554]
[1743632356677,0.13250001,83581.0,83580.0,0.4816554]
[1743632357284,0.0598065,83610.0,83597.0,0.1196282]
[1743632357483,0.1196301,83598.0,83597.0,0.1208282]
[1743632357685,0.1794444,83598.0,83597.0,0.120871]
[1743632357884,0.54148441,83598.0,83597.0,0.00124]
[1743632358092,0.1196411,83590.0,83589.0,0.00017946]
[1743632358394,0.4810811,83590.0,83589.0,0.00017946]
[1743632358587,0.661,83590.0,83550.0,0.0598489]
[1743632358784,0.3608,83562.0,83552.0,0.1251]
[1743632358985,0.3608,83553.0,83530.0,0.00179615]
[1743632359196,0.4805256,83531.0,83530.0,0.0008]
[1743632359387,0.1197299,83528.0,83527.0,0.2145779]
[1743632359589,0.1205299,83528.0,83527.0,0.2153779]
[1743632359783,0.1197356,83524.0,83523.0,0.10050312]
[1743632360088,0.1197413,83520.0,83519.0,0.00017958]
[1743632360287,0.12034131,83520.0,83519.0,0.00077958]
[1743632361087,0.48114131,83520.0,83519.0,0.00077958]
[1743632362883,0.62838366,83520.0,83519.0,0.00077958]
[1743632363284,0.62790498,83520.0,83518.0,0.3542313]
[1743632363483,0.1197514,83513.0,83512.0,0.42559428]
[1743632363788,0.36156,83513.0,83512.0,0.1197528]
[1743632363991,0.36156,83513.0,83512.0,0.1204328]
[1743632364297,0.00076,83513.0,83512.0,0.1197528]
[1743632364483,0.00076,83513.0,83512.0,0.3750528]
[1743632364796,0.4206565,83540.0,83530.0,0.1197256]
[1743632364797,0.1474,83533.0,83530.0,0.1197256]
[1743632365091,0.00076,83532.0,83531.0,0.1197256]
[1743632365296,0.00076,83532.0,83531.0,0.4811256]
[1743632365498,0.00076,83532.0,83531.0,1.0472256]
[1743632365794,0.00017947,83536.0,83535.0,0.1197198]
[1743632365983,0.00017947,83536.0,83535.0,0.1203598]
[1743632366184,0.1857531,83545.0,83544.0,0.1197069]
[1743632366185,0.1259,83545.0,83544.0,0.1197069]
[1743632366492,0.1259,83545.0,83544.0,0.0006]
[1743632366493,0.1197055,83545.0,83544.0,0.0006]
[1743632366796,0.1197055,83545.0,83535.0,0.2561]
[1743632366797,0.1197184,83536.0,83535.0,0.2561]
[1743632366988,0.00076,83536.0,83523.0,0.00017958]
[1743632367193,0.1197254,83532.0,83531.0,0.1197227]
[1743632367397,0.2473,83535.0,83534.0,0.1197213]
[1743632367700,0.11989588,83538.0,83537.0,0.119717]
[1743632367891,0.00093958,83538.0,83537.0,0.120317]
[1743632368399,0.00017958,83538.0,83537.0,0.481117]
[1743632368584,0.00017958,83538.0,83537.0,0.610917]
[1743632368985,0.00017958,83538.0,83537.0,0.3614]
[1743632369185,0.11989508,83538.0,83537.0,0.3614]
[1743632369394,0.25213508,83538.0,83537.0,0.120317]
[1743632369994,0.2611421,83538.0,83537.0,0.120317]
[1743632370592,0.2611421,83538.0,83537.0,0.481117]
[1743632370902,0.2611421,83538.0,83537.0,0.120317]
[1743632371898,0.1197356,83524.0,83507.0,0.3608]
[1743632372097,0.1197485,83515.0,83514.0,0.3608]
[1743632372288,0.2442,83523.0,83520.0,0.1796088]
[1743632372495,0.00104001,83523.0,83522.0,0.1197385]
[1743632372790,0.0598587,83537.0,83522.0,0.1197385]
[1743632372791,0.3612,83555.0,83538.0,0.1197155]
[1743632372994,0.1196567,83580.0,83558.0,0.0598428]
[1743632373193,0.2442,83579.0,83570.0,0.1196697]
[1743632373391,0.2442,83579.0,83570.0,0.3756697]
[1743632373594,0.17293729,83571.0,83570.0,0.3756697]
[1743632374000,0.3608,83605.0,83580.0,0.0598275]
[1743632374204,0.1196424,83590.0,83586.0,0.1196468]
[1743632374401,0.0598177,83594.0,83586.0,0.4804468]
[1743632374702,0.4206155,83598.0,83586.0,0.1196468]
[1743632374905,0.1794735,83586.0,83585.0,0.119648]
[1743632375198,0.1196525,83584.0,83583.0,0.2393012]
[1743632375391,0.1196525,83584.0,83583.0,0.2173012]
[1743632375592,0.1196525,83584.0,83583.0,0.5781012]
[1743632375793,0.0001792,83594.0,83586.0,0.1196468]
[1743632376000,0.1198151,83594.0,83586.0,0.1196468]
[1743632376197,0.0599969,83594.0,83586.0,0.3660468]
[1743632376395,0.0598199,83591.0,83586.0,0.6760468]
[1743632376597,0.1196449,83588.0,83586.0,0.6760468]
[1743632376795,0.1200453,83587.0,83586.0,0.6760468]
[1743632376995,0.0004,83587.0,83586.0,0.6760468]
[1743632377490,0.1200453,83587.0,83586.0,0.3660468]
[1743632377694,0.1200453,83587.0,83586.0,0.1196468]
[1743632378405,0.1208853,83587.0,83586.0,0.1204868]
[1743632378597,0.4816853,83587.0,83586.0,0.00084]
[1743632378795,0.0598275,83582.0,83581.0,0.1196488]
[1743632378995,0.0606675,83582.0,83581.0,0.1204888]
[1743632379395,0.00084,83582.0,83581.0,0.1204888]
[1743632380105,0.00084,83582.0,83581.0,0.2419888]
[1743632380906,0.3100188,83593.0,83581.0,0.2419888]
[1743632380907,0.1,83600.0,83593.0,0.1196368]
[1743632381096,0.00125921,83594.0,83593.0,0.4815168]
[1743632381308,0.0001792,83594.0,83593.0,0.4815168]
[1743632381804,0.0001792,83594.0,83593.0,0.1207168]
[1743632382000,0.1198145,83594.0,83593.0,0.1207168]
[1743632382202,0.1209745,83594.0,83593.0,0.1207168]
[1743632382398,0.1209745,83594.0,83593.0,0.00108]
[1743632382601,0.1794629,83591.0,83590.0,0.1196397]
[1743632382800,0.1801429,83591.0,83590.0,0.1207197]
[1743632382998,0.4345429,83591.0,83590.0,0.00108]
[1743632383199,0.1196597,83577.0,83566.0,0.3608]
[1743632383398,0.1196768,83565.0,83564.0,0.1216778]
[1743632383702,0.1203568,83565.0,83564.0,0.0026]
[1743632384004,0.00068,83565.0,83564.0,0.1222783]
[1743632384205,0.2393431,83573.0,83572.0,0.0598331]
[1743632384509,0.24020256,83573.0,83572.0,0.0598331]
[1743632384801,0.06069256,83573.0,83572.0,0.0598331]
[1743632385205,0.06069256,83573.0,83561.0,0.0598413]
[1743632385206,0.1196768,83565.0,83561.0,0.0598413]
[1743632385399,0.2544,83572.0,83564.0,0.00268]
[1743632385600,0.25516,83572.0,83571.0,0.1196683]
[1743632385806,0.00076,83572.0,83571.0,0.1203483]
[1743632386002,0.00017946,83573.0,83572.0,0.1196668]
[1743632386206,0.00706391,83573.0,83572.0,0.4810668]
[1743632386402,0.00706391,83573.0,83572.0,0.7315668]
[1743632386805,0.00017946,83573.0,83572.0,0.7315668]
[1743632387912,0.0598365,83568.0,83564.0,0.0618377]
[1743632388112,0.4804768,83565.0,83564.0,0.1815131]
[1743632388413,0.48826908,83565.0,83564.0,0.0026]
[1743632388607,0.1196883,83557.0,83555.0,0.119691]
[1743632388810,0.12776059,83557.0,83556.0,0.11986916]
[1743632389009,0.00807229,83557.0,83556.0,0.12050916]
[1743632389210,0.00807229,83557.0,83556.0,0.74130916]
[1743632389506,0.00695228,83557.0,83556.0,0.74130916]
[1743632389811,0.2504783,83564.0,83563.0,0.1196797]
[1743632390013,0.2515583,83564.0,83563.0,0.4811197]
[1743632391013,0.25843784,83564.0,83563.0,0.00064]
[1743632391512,0.1196883,83557.0,83556.0,0.00017946]
[1743632391704,0.51418531,83557.0,83556.0,0.00017946]
[1743632391906,0.15338531,83557.0,83556.0,0.11986916]
[1743632392110,0.00807955,83557.0,83556.0,0.12046916]
[1743632392614,0.00017946,83573.0,83572.0,0.1196668]